[Event "GER-ch Youth U18w 2019"]
[Site "Willingen"]
[Date "2019.06.10"]
[Round "3.2"]
[White "Arnhold, Steffi"]
[Black "Moenster, Madita"]
[Result "1/2-1/2"]
[ECO "B56"]
[WhiteElo "1996"]
[BlackElo "1994"]
[Annotator "NA"]
[PlyCount "62"]
[EventDate "2019.06.07"]
[EventType "swiss"]
[EventRounds "9"]
[EventCountry "GER"]
[SourceTitle "playchess.com"]
[Source "ChessBase"]
[SourceQuality "1"]
[TimeControl "40/5400+30:1800+30"]

1. e4 {[%emt 0:00:00]} c5 {[%emt 0:00:00]} 2. Nf3 {[%emt 0:00:00]} Nc6 {[%emt 0:00:00]} 3. d4 {[%emt 0:00:00]} cxd4 {[%emt 0:00:00]} 4. Nxd4 {[%emt 0:00:00]} Nf6 {[%emt 0:00:01]} 5. Nc3 {[%emt 0:00:08]} d6 {[%emt 0:00:08]} 6. f4 {[%emt 0:00:50]} e5 {[%emt 0:13:33]} 7. Nxc6 {[%emt 0:03:07]} bxc6 {[%emt 0:00:12]} 8. fxe5 {[%emt 0:00:45]} dxe5 {[%emt 0:00:25]} 9. Qxd8+ {[%emt 0:01:43]} Kxd8 {[%emt 0:00:08]} 10. a3 {[%emt 0:09:17]} Bc5 {[%emt 0:06:09]} 11. Bg5 {[%emt 0:05:29]} Ke7 {[%emt 0:03:09]} 12. O-O-O {[%emt 0:08:35]} h6 {[%emt 0:08:03]} 13. Bh4 {[%emt 0:11:11]} Be6 {[%emt 0:11:23]} 14. Ba6 {[%emt 0:09:12]} Rab8 {[%emt 0:04:51]} 15. Rhe1 {[%emt 0:01:59]} Bd4 {[%emt 0:06:06]} 16. Na4 {[%emt 0:04:40]} g5 {[%emt 0:14:05]} 17. Bg3 {[%emt 0:01:10]} Nd7 {[%emt 0:02:18]} 18. c3 {[%emt 0:09:17]} Bb6 {[%emt 0:02:06]} 19. Rxd7+ {[%emt 0:10:17]} Bxd7 {[%emt 0:02:00]} 20. Bxe5 {[%emt 0:00:27]} f6 {[%emt 0:01:07]} 21. Bxb8 {[%emt 0:00:16]} Rxb8 {[%emt 0:00:08]} 22. Nxb6 {[%emt 0:00:45]} Rxb6 {[%emt 0:05:18]} 23. Bc4 {[%emt 0:01:40]} a5 {[%emt 0:03:21]} 24. e5 {[%emt 0:06:17]} c5 {[%emt 0:06:00]} 25. exf6+ {[%emt 0:01:04]} Kxf6 {[%emt 0:00:22]} 26. Rd1 {[%emt 0:03:43]} Be6 {[%emt 0:04:48]} 27. Rf1+ {[%emt 0:01:05]} Kg6 {[%emt 0:00:53]} 28. Bxe6 {[%emt 0:00:34]} Rxe6 {[%emt 0:00:06]} 29. Rf2 {[%emt 0:00:45]} c4 {[%emt 0:01:23]} 30. a4 {[%emt 0:01:43]} Re1+ {[%emt 0:02:13]} 31. Kc2 {[%emt 0:00:26]} Ra1 {[%emt 0:01:01] normal} 1/2-1/2

[Event "GER-ch Youth U18w 2019"]
[Site "Willingen"]
[Date "2019.06.10"]
[Round "3.3"]
[White "Ziegenfuss, Antonia"]
[Black "Kobald, Jacqueline"]
[Result "1-0"]
[ECO "A44"]
[WhiteElo "2111"]
[BlackElo "1839"]
[Annotator "NA"]
[PlyCount "33"]
[EventDate "2019.06.07"]
[EventType "swiss"]
[EventRounds "9"]
[EventCountry "GER"]
[SourceTitle "playchess.com"]
[Source "ChessBase"]
[SourceQuality "1"]
[TimeControl "40/5400+30:1800+30"]

1. d4 {[%emt 0:00:00]} c5 {[%emt 0:00:00]} 2. d5 {[%emt 0:00:00]} e5 {[%emt 0:00:00]} 3. c4 {[%emt 0:00:18]} d6 {[%emt 0:00:11]} 4. e4 {[%emt 0:00:37]} Be7 {[%emt 0:00:23]} 5. Nc3 {[%emt 0:00:33]} a6 {[%emt 0:05:41]} 6. Bd3 {[%emt 0:02:18]} Bg5 {[%emt 0:01:23]} 7. Nge2 {[%emt 0:09:25]} Bxc1 {[%emt 0:00:29]} 8. Qxc1 {[%emt 0:00:53]} Ne7 {[%emt 0:04:14]} 9. O-O {[%emt 0:05:30]} O-O {[%emt 0:00:45]} 10. a3 {[%emt 0:14:43]} f5 {[%emt 0:19:52]} 11. f4 {[%emt 0:08:19]} Ng6 {[%emt 0:11:20]} 12. exf5 {[%emt 0:08:06]} Bxf5 {[%emt 0:00:49]} 13. Bxf5 {[%emt 0:01:59]} Rxf5 {[%emt 0:00:09]} 14. Qc2 {[%emt 0:01:00]} Rf7 {[%emt 0:09:54]} 15. f5 {[%emt 0:03:50]} Ne7 {[%emt 0:07:48]} 16. Ng3 {[%emt 0:01:39]} Nd7 {[%emt 0:02:39]} 17. Nce4 {[%emt 0:02:00] normal} 1-0

[Event "GER-ch Youth U18w 2019"]
[Site "Willingen"]
[Date "2019.06.10"]
[Round "3.4"]
[White "Kadach, Maria"]
[Black "Moeller, Lisa-Marie"]
[Result "0-1"]
[ECO "A43"]
[WhiteElo "1448"]
[BlackElo "1900"]
[Annotator "NA"]
[PlyCount "61"]
[EventDate "2019.06.07"]
[EventType "swiss"]
[EventRounds "9"]
[EventCountry "GER"]
[SourceTitle "playchess.com"]
[Source "ChessBase"]
[SourceQuality "1"]
[TimeControl "40/5400+30:1800+30"]

1. d4 {[%emt 0:00:00]} c5 {[%emt 0:00:00]} 2. d5 {[%emt 0:00:00]} Nf6 {[%emt 0:00:00]} 3. Nc3 {[%emt 0:00:00]} d6 {[%emt 0:00:22]} 4. e4 {[%emt 0:00:00]} g6 {[%emt 0:00:14]} 5. Nf3 {[%emt 0:00:14]} Bg4 {[%emt 0:01:03]} 6. Be2 {[%emt 0:00:30]} Bxf3 {[%emt 0:00:24]} 7. Bxf3 {[%emt 0:00:11]} Bg7 {[%emt 0:00:34]} 8. O-O {[%emt 0:01:31]} Nbd7 {[%emt 0:02:39]} 9. Bf4 {[%emt 0:01:26]} O-O {[%emt 0:02:00]} 10. Re1 {[%emt 0:01:06]} Ne8 {[%emt 0:02:22]} 11. Qd2 {[%emt 0:02:46]} Nc7 {[%emt 0:02:58]} 12. a4 {[%emt 0:00:45]} a6 {[%emt 0:05:28]} 13. a5 {[%emt 0:07:07]} Re8 {[%emt 0:08:14]} 14. h3 {[%emt 0:07:59]} Rb8 {[%emt 0:02:43]} 15. Ra2 {[%emt 0:06:27]} b5 {[%emt 0:11:52]} 16. axb6 {[%emt 0:01:04]} Rxb6 {[%emt 0:00:51]} 17. Na4 {[%emt 0:04:08]} Rb4 {[%emt 0:04:02]} 18. b3 {[%emt 0:04:16]} Qb8 {[%emt 0:05:12]} 19. Qc1 {[%emt 0:30:22]} c4 {[%emt 0:09:47]} 20. bxc4 {[%emt 0:01:30]} Rxc4 {[%emt 0:01:07]} 21. Nb2 {[%emt 0:06:43]} Rb4 {[%emt 0:06:52]} 22. c3 {[%emt 0:00:16]} Rb3 {[%emt 0:05:41]} 23. Bd2 {[%emt 0:02:40]} Nc5 {[%emt 0:04:36]} 24. Qc2 {[%emt 0:07:17]} Nb5 {[%emt 0:04:00]} 25. Na4 {[%emt 0:02:41]} Na3 {[%emt 0:02:19]} 26. Rxa3 {[%emt 0:07:00]} Rxa3 {[%emt 0:00:13]} 27. Nxc5 {[%emt 0:00:21]} dxc5 {[%emt 0:00:40]} 28. Rb1 {[%emt 0:00:40]} Qc7 {[%emt 0:09:49]} 29. Qb2 {[%emt 0:01:11]} Ra5 {[%emt 0:00:48]} 30. Be2 {[%emt 0:00:28]} c4 {[%emt 0:00:40]} 31. Qc2 {[%emt 0:02:45] normal} 0-1

[Event "GER-ch Youth U18w 2019"]
[Site "Willingen"]
[Date "2019.06.10"]
[Round "3.5"]
[White "Poetsch, Leonore"]
[Black "Ratay, Meike"]
[Result "0-1"]
[ECO "B94"]
[WhiteElo "1982"]
[BlackElo "1991"]
[Annotator "NA"]
[PlyCount "32"]
[EventDate "2019.06.07"]
[EventType "swiss"]
[EventRounds "9"]
[EventCountry "GER"]
[SourceTitle "playchess.com"]
[Source "ChessBase"]
[SourceQuality "1"]
[TimeControl "40/5400+30:1800+30"]

1. e4 {[%emt 0:00:00]} c5 {[%emt 0:00:00]} 2. Nf3 {[%emt 0:00:00]} d6 {[%emt 0:00:00]} 3. d4 {[%emt 0:00:00]} Nf6 {[%emt 0:00:00]} 4. Nc3 {[%emt 0:00:23]} cxd4 {[%emt 0:00:00]} 5. Nxd4 {[%emt 0:00:06]} a6 {[%emt 0:00:00]} 6. Bg5 {[%emt 0:00:33]} Nbd7 {[%emt 0:00:08]} 7. Qf3 {[%emt 0:00:41]} h6 {[%emt 0:00:44]} 8. Bxf6 {[%emt 0:01:55]} Nxf6 {[%emt 0:00:16]} 9. O-O-O {[%emt 0:00:45]} Bg4 {[%emt 0:03:39]} 10. Qd3 {[%emt 0:01:22]} Bxd1 {[%emt 0:00:43]} 11. Qxd1 {[%emt 0:00:06]} Qc7 {[%emt 0:03:25]} 12. Bd3 {[%emt 0:01:09]} e6 {[%emt 0:01:52]} 13. f4 {[%emt 0:01:46]} Be7 {[%emt 0:03:26]} 14. g4 {[%emt 0:02:20]} O-O-O {[%emt 0:09:22]} 15. Qf3 {[%emt 0:07:55]} d5 {[%emt 0:08:50]} 16. e5 {[%emt 0:01:56]} Nd7 {[%emt 0:00:39] normal} 0-1

[Event "GER-ch Youth U18w 2019"]
[Site "Willingen"]
[Date "2019.06.10"]
[Round "3.6"]
[White "Koehler, Inken"]
[Black "Tampe, Friederike"]
[Result "1-0"]
[ECO "C44"]
[WhiteElo "1975"]
[BlackElo "1512"]
[Annotator "NA"]
[PlyCount "75"]
[EventDate "2019.06.07"]
[EventType "swiss"]
[EventRounds "9"]
[EventCountry "GER"]
[SourceTitle "playchess.com"]
[Source "ChessBase"]
[SourceQuality "1"]
[TimeControl "40/5400+30:1800+30"]

1. e4 {[%emt 0:00:00]} e5 {[%emt 0:00:00]} 2. Nf3 {[%emt 0:00:00]} Nc6 {[%emt 0:00:00]} 3. d4 {[%emt 0:00:00]} exd4 {[%emt 0:00:00]} 4. Nxd4 {[%emt 0:00:00]} Nf6 {[%emt 0:00:00]} 5. Nxc6 {[%emt 0:00:00]} bxc6 {[%emt 0:00:05]} 6. Qe2 {[%emt 0:00:01]} Bc5 7. Nc3 {[%emt 0:03:57]} O-O {[%emt 0:01:38]} 8. g3 {[%emt 0:01:29]} d6 {[%emt 0:02:05]} 9. Bg2 {[%emt 0:01:47]} Re8 {[%emt 0:03:39]} 10. O-O {[%emt 0:04:05]} Bg4 {[%emt 0:06:37]} 11. Qa6 {[%emt 0:07:16]} Bd7 {[%emt 0:04:00]} 12. Qd3 {[%emt 0:09:20]} Ng4 {[%emt 0:06:48]} 13. Na4 {[%emt 0:03:47]} Ne5 {[%emt 0:06:46]} 14. Qc3 {[%emt 0:00:32]} Bb6 {[%emt 0:00:23]} 15. b3 {[%emt 0:02:03]} Qe7 {[%emt 0:02:31]} 16. Bb2 {[%emt 0:02:03]} f6 {[%emt 0:00:57]} 17. Qd2 {[%emt 0:06:59]} Rad8 {[%emt 0:02:48]} 18. c4 {[%emt 0:02:10]} Be6 {[%emt 0:04:16]} 19. Ba3 {[%emt 0:10:47]} Qd7 {[%emt 0:03:29]} 20. Qc3 {[%emt 0:07:00]} Bh3 {[%emt 0:05:11]} 21. Rad1 {[%emt 0:06:20]} Qg4 {[%emt 0:07:04]} 22. Rfe1 {[%emt 0:06:53]} Ba5 {[%emt 0:10:32]} 23. b4 {[%emt 0:07:23]} Bb6 {[%emt 0:03:24]} 24. Nxb6 {[%emt 0:01:10]} cxb6 {[%emt 0:00:14]} 25. f4 {[%emt 0:01:47]} Nf7 {[%emt 0:00:54]} 26. Bf3 {[%emt 0:01:30]} Qe6 {[%emt 0:00:51]} 27. Bb2 {[%emt 0:02:34]} c5 {[%emt 0:05:01]} 28. b5 {[%emt 0:01:19]} Re7 {[%emt 0:00:56]} 29. Bh5 {[%emt 0:03:02]} Qc8 {[%emt 0:02:23]} 30. Qd3 {[%emt 0:04:27]} Bg4 {[%emt 0:01:20]} 31. Bxg4 {[%emt 0:01:51]} Qxg4 {[%emt 0:00:06]} 32. Kg2 {[%emt 0:00:19]} Rde8 {[%emt 0:00:47]} 33. Re3 {[%emt 0:01:28]} f5 {[%emt 0:04:07]} 34. Rde1 {[%emt 0:00:34]} fxe4 {[%emt 0:01:37]} 35. Rxe4 {[%emt 0:00:12]} Rxe4 {[%emt 0:02:49]} 36. Rxe4 {[%emt 0:00:05]} Rxe4 {[%emt 0:00:38]} 37. Qxe4 {[%emt 0:00:01]} Qc8 {[%emt 0:00:22]} 38. Qe7 {[%emt 0:02:26] normal} 1-0

[Event "GER-ch Youth U18w 2019"]
[Site "Willingen"]
[Date "2019.06.10"]
[Round "3.7"]
[White "Alferova, Ekaterina"]
[Black "Reitz, Theresa"]
[Result "1/2-1/2"]
[ECO "A45"]
[WhiteElo "1597"]
[BlackElo "1976"]
[Annotator "NA"]
[PlyCount "59"]
[EventDate "2019.06.07"]
[EventType "swiss"]
[EventRounds "9"]
[EventCountry "GER"]
[SourceTitle "playchess.com"]
[Source "ChessBase"]
[SourceQuality "1"]
[TimeControl "40/5400+30:1800+30"]

1. d4 {[%emt 0:00:00]} Nf6 {[%emt 0:00:00]} 2. Bf4 {[%emt 0:00:00]} g6 {[%emt 0:00:00]} 3. e3 {[%emt 0:00:00]} Bg7 {[%emt 0:00:00]} 4. h3 {[%emt 0:00:00]} d5 {[%emt 0:00:34]} 5. Nf3 {[%emt 0:00:05]} O-O {[%emt 0:00:11]} 6. Be2 {[%emt 0:00:14]} c5 {[%emt 0:00:30]} 7. c3 {[%emt 0:00:10]} b6 {[%emt 0:00:20]} 8. O-O {[%emt 0:00:36]} Nc6 {[%emt 0:00:32]} 9. Nbd2 {[%emt 0:00:16]} Bb7 {[%emt 0:00:52]} 10. Rc1 {[%emt 0:07:08]} Nd7 {[%emt 0:03:33]} 11. Bh2 {[%emt 0:19:58]} e5 {[%emt 0:04:40]} 12. dxe5 {[%emt 0:00:20]} Ndxe5 {[%emt 0:00:17]} 13. Nxe5 {[%emt 0:00:22]} Nxe5 {[%emt 0:01:09]} 14. Nf3 {[%emt 0:00:33]} Nc4 {[%emt 0:12:23]} 15. Qc2 {[%emt 0:11:04]} Qe7 {[%emt 0:05:01]} 16. Rfd1 {[%emt 0:03:44]} Rfd8 {[%emt 0:05:39]} 17. Bf4 {[%emt 0:18:55]} h6 {[%emt 0:10:56]} 18. Bh2 {[%emt 0:02:26]} Rac8 {[%emt 0:00:46]} 19. Bf4 {[%emt 0:05:37]} Nd6 {[%emt 0:04:45]} 20. Qd3 {[%emt 0:01:50]} Ne4 {[%emt 0:02:36]} 21. Qb1 {[%emt 0:13:56]} Bc6 {[%emt 0:23:10]} 22. Qd3 {[%emt 0:08:10]} b5 {[%emt 0:07:22]} 23. a3 {[%emt 0:00:53]} a6 {[%emt 0:00:33]} 24. Qb1 {[%emt 0:01:27]} f5 {[%emt 0:09:46]} 25. Bh2 {[%emt 0:01:04]} Kh8 {[%emt 0:00:11]} 26. Bf4 {[%emt 0:00:23]} Nf6 {[%emt 0:02:10]} 27. Ne5 {[%emt 0:00:50]} Qe8 {[%emt 0:00:07]} 28. Nxc6 {[%emt 0:00:17]} Rxc6 {[%emt 0:00:34]} 29. Bf3 {[%emt 0:00:24]} Ne4 {[%emt 0:00:13]} 30. Qc2 {[%emt 0:01:06] normal} 1/2-1/2

[Event "GER-ch Youth U18w 2019"]
[Site "Willingen"]
[Date "2019.06.10"]
[Round "3.8"]
[White "Trams, Emma Joe"]
[Black "Koenze, Heike"]
[Result "0-1"]
[ECO "B90"]
[WhiteElo "1418"]
[BlackElo "1919"]
[Annotator "NA"]
[PlyCount "58"]
[EventDate "2019.06.07"]
[EventType "swiss"]
[EventRounds "9"]
[EventCountry "GER"]
[SourceTitle "playchess.com"]
[Source "ChessBase"]
[SourceQuality "1"]
[TimeControl "40/5400+30:1800+30"]

1. e4 {[%emt 0:00:00]} c5 {[%emt 0:00:00]} 2. Nf3 {[%emt 0:00:00]} d6 {[%emt 0:00:00]} 3. d4 {[%emt 0:00:00]} cxd4 {[%emt 0:00:00]} 4. Nxd4 {[%emt 0:00:00]} Nf6 {[%emt 0:00:00]} 5. Nc3 {[%emt 0:00:00]} a6 {[%emt 0:00:00]} 6. Bc4 {[%emt 0:00:02]} e6 {[%emt 0:00:00]} 7. O-O {[%emt 0:00:15]} Be7 {[%emt 0:00:00]} 8. Re1 {[%emt 0:00:21]} O-O {[%emt 0:00:13]} 9. Be3 {[%emt 0:00:50]} b5 {[%emt 0:01:18]} 10. Bd3 {[%emt 0:00:24]} Bb7 {[%emt 0:00:38]} 11. a3 {[%emt 0:00:56]} Nbd7 {[%emt 0:00:59]} 12. Qf3 {[%emt 0:02:10]} Nc5 {[%emt 0:02:47]} 13. Rad1 {[%emt 0:05:30]} Rc8 {[%emt 0:04:23]} 14. Nde2 {[%emt 0:04:16]} Nfxe4 {[%emt 0:12:23]} 15. Bxe4 {[%emt 0:06:06]} Nxe4 {[%emt 0:00:09]} 16. Nxe4 {[%emt 0:00:46]} Ba8 {[%emt 0:01:47]} 17. Qf4 {[%emt 0:03:23]} e5 {[%emt 0:00:11]} 18. Qg3 {[%emt 0:19:32]} Bxe4 {[%emt 0:02:02]} 19. c3 {[%emt 0:00:49]} f5 {[%emt 0:02:29]} 20. Qh3 {[%emt 0:04:42]} f4 {[%emt 0:02:43]} 21. Qe6+ {[%emt 0:03:26]} Kh8 {[%emt 0:00:09]} 22. Bc1 {[%emt 0:00:47]} Rf6 {[%emt 0:00:39]} 23. Qb3 {[%emt 0:01:59]} Ba8 {[%emt 0:01:43]} 24. f3 {[%emt 0:02:41]} Qb6+ {[%emt 0:01:12]} 25. Kf1 {[%emt 0:01:28]} Qa7 {[%emt 0:03:41]} 26. a4 {[%emt 0:04:48]} bxa4 {[%emt 0:00:43]} 27. Qxa4 {[%emt 0:00:11]} Rh6 {[%emt 0:02:14]} 28. Nxf4 {[%emt 0:10:46]} Bc6 {[%emt 0:02:27]} 29. Qc4 {[%emt 0:03:16]} Bb5 {[%emt 0:00:23] normal} 0-1

[Event "GER-ch Youth U18w 2019"]
[Site "Willingen"]
[Date "2019.06.10"]
[Round "3.9"]
[White "Browning, Rebecca"]
[Black "Schneider, Xenia"]
[Result "1-0"]
[ECO "B10"]
[WhiteElo "1923"]
[BlackElo "1364"]
[Annotator "NA"]
[PlyCount "49"]
[EventDate "2019.06.07"]
[EventType "swiss"]
[EventRounds "9"]
[EventCountry "GER"]
[SourceTitle "playchess.com"]
[Source "ChessBase"]
[SourceQuality "1"]
[TimeControl "40/5400+30:1800+30"]

1. e4 {[%emt 0:00:00]} c6 {[%emt 0:00:00]} 2. Nf3 {[%emt 0:00:00]} d5 {[%emt 0:00:00]} 3. exd5 {[%emt 0:00:00]} cxd5 {[%emt 0:00:00]} 4. Ne5 {[%emt 0:00:00]} Nc6 {[%emt 0:00:55]} 5. d4 {[%emt 0:00:08]} Bf5 {[%emt 0:02:50]} 6. c3 {[%emt 0:04:28]} Qb6 {[%emt 0:02:01]} 7. Qf3 {[%emt 0:02:05]} e6 {[%emt 0:07:10]} 8. Bd3 {[%emt 0:03:39]} Nge7 {[%emt 0:16:09]} 9. Nxc6 {[%emt 0:02:33]} bxc6 {[%emt 0:00:48]} 10. O-O {[%emt 0:00:22]} Bxd3 {[%emt 0:01:20]} 11. Qxd3 {[%emt 0:00:05]} Nf5 {[%emt 0:00:07]} 12. Nd2 {[%emt 0:00:41]} Be7 {[%emt 0:04:29]} 13. Nf3 {[%emt 0:03:03]} O-O {[%emt 0:04:12]} 14. Ne5 {[%emt 0:02:39]} c5 {[%emt 0:01:38]} 15. Nd7 {[%emt 0:00:44]} Qd8 {[%emt 0:03:00]} 16. Nxf8 {[%emt 0:00:08]} Bxf8 {[%emt 0:00:15]} 17. dxc5 {[%emt 0:00:39]} Bxc5 {[%emt 0:00:22]} 18. Kh1 {[%emt 0:01:27]} Qh4 {[%emt 0:05:07]} 19. Qf3 {[%emt 0:03:18]} Bd6 {[%emt 0:01:37]} 20. g3 {[%emt 0:00:18]} Qh3 {[%emt 0:00:36]} 21. Qg2 {[%emt 0:04:47]} Qg4 {[%emt 0:02:28]} 22. Bd2 {[%emt 0:05:52]} Rb8 {[%emt 0:07:29]} 23. b4 {[%emt 0:02:36]} h5 {[%emt 0:01:45]} 24. a4 {[%emt 0:04:18]} h4 {[%emt 0:06:31]} 25. f3 {[%emt 0:03:53] normal} 1-0

[Event "GER-ch Youth U18w 2019"]
[Site "Willingen"]
[Date "2019.06.10"]
[Round "3.10"]
[White "Fock, Sana"]
[Black "Mundt, Alexandra"]
[Result "1-0"]
[ECO "C28"]
[WhiteElo "1796"]
[BlackElo "1797"]
[Annotator "NA"]
[PlyCount "53"]
[EventDate "2019.06.07"]
[EventType "swiss"]
[EventRounds "9"]
[EventCountry "GER"]
[SourceTitle "playchess.com"]
[Source "ChessBase"]
[SourceQuality "1"]
[TimeControl "40/5400+30:1800+30"]

1. e4 {[%emt 0:00:00]} e5 {[%emt 0:00:00]} 2. Nc3 {[%emt 0:00:00]} Nf6 {[%emt 0:00:00]} 3. Bc4 {[%emt 0:00:00]} Nc6 {[%emt 0:00:14]} 4. d3 {[%emt 0:00:00]} Bb4 {[%emt 0:00:51]} 5. Nge2 {[%emt 0:01:26]} d6 {[%emt 0:01:25]} 6. O-O {[%emt 0:00:44]} Be6 {[%emt 0:01:03]} 7. Bxe6 {[%emt 0:04:31]} fxe6 {[%emt 0:00:08]} 8. Bg5 {[%emt 0:01:59]} Qe7 {[%emt 0:08:53]} 9. a3 {[%emt 0:04:45]} Bxc3 {[%emt 0:01:54]} 10. Nxc3 {[%emt 0:01:05]} O-O-O {[%emt 0:00:21]} 11. b4 {[%emt 0:06:09]} h6 {[%emt 0:05:59]} 12. Be3 {[%emt 0:05:05]} g5 {[%emt 0:01:21]} 13. b5 {[%emt 0:03:04]} Nd4 {[%emt 0:00:06]} 14. a4 {[%emt 0:08:47]} g4 {[%emt 0:01:02]} 15. Na2 {[%emt 0:06:30]} d5 {[%emt 0:05:16]} 16. c3 {[%emt 0:04:49]} dxe4 {[%emt 0:00:19]} 17. cxd4 {[%emt 0:01:08]} exd4 {[%emt 0:00:06]} 18. Bc1 {[%emt 0:05:28]} exd3 {[%emt 0:01:17]} 19. Qxd3 {[%emt 0:00:32]} e5 {[%emt 0:02:07]} 20. Ba3 {[%emt 0:03:48]} Qe6 {[%emt 0:00:43]} 21. Rfc1 {[%emt 0:05:49]} Rhe8 {[%emt 0:03:22]} 22. a5 {[%emt 0:01:48]} e4 {[%emt 0:02:17]} 23. Qc2 {[%emt 0:02:49]} Rd7 {[%emt 0:01:22]} 24. b6 {[%emt 0:02:21]} axb6 {[%emt 0:04:33]} 25. axb6 {[%emt 0:00:32]} Nd5 {[%emt 0:09:16]} 26. Bc5 {[%emt 0:10:07]} d3 {[%emt 0:14:26]} 27. Nb4 {[%emt 0:09:34] normal} 1-0

[Event "GER-ch Youth U18w 2019"]
[Site "Willingen"]
[Date "2019.06.10"]
[Round "3.11"]
[White "Gauchel, Verena"]
[Black "Fuchs, Emily"]
[Result "0-1"]
[ECO "E32"]
[WhiteElo "1534"]
[BlackElo "1384"]
[Annotator "NA"]
[PlyCount "64"]
[EventDate "2019.06.07"]
[EventType "swiss"]
[EventRounds "9"]
[EventCountry "GER"]
[SourceTitle "playchess.com"]
[Source "ChessBase"]
[SourceQuality "1"]
[TimeControl "40/5400+30:1800+30"]

1. d4 {[%emt 0:00:00]} Nf6 {[%emt 0:00:00]} 2. c4 {[%emt 0:00:00]} e6 3. Nc3 {[%emt 0:00:00]} Bb4 {[%emt 0:00:00]} 4. Qc2 {[%emt 0:00:00]} b6 {[%emt 0:00:38]} 5. Nf3 {[%emt 0:00:49]} Bb7 6. a3 {[%emt 0:00:53]} Bxc3+ {[%emt 0:00:56]} 7. Qxc3 {[%emt 0:00:06]} Ne4 {[%emt 0:02:23]} 8. Qc2 {[%emt 0:00:24]} f5 {[%emt 0:01:45]} 9. e3 {[%emt 0:02:38]} d6 {[%emt 0:01:43]} 10. Bd3 O-O 11. b4 {[%emt 0:08:16]} Nd7 {[%emt 0:07:19]} 12. Bb2 {[%emt 0:06:08]} c5 {[%emt 0:05:16]} 13. dxc5 {[%emt 0:01:46]} dxc5 {[%emt 0:21:00]} 14. O-O {[%emt 0:09:29]} Qe7 15. Nd2 {[%emt 0:00:09]} Nxd2 {[%emt 0:08:03]} 16. Qxd2 {[%emt 0:01:49]} Nf6 {[%emt 0:02:54]} 17. f3 {[%emt 0:05:02]} Rad8 {[%emt 0:19:53]} 18. Qc3 Nh5 19. b5 {[%emt 0:11:49]} Qg5 {[%emt 0:07:47]} 20. Bc2 {[%emt 0:03:42]} Rf6 {[%emt 0:04:46]} 21. Qe1 {[%emt 0:10:31]} Rg6 {[%emt 0:05:51]} 22. Qe2 Rh6 {[%emt 0:03:27]} 23. Be5 {[%emt 0:09:41]} f4 24. exf4 {[%emt 0:06:24]} Nxf4 {[%emt 0:00:42]} 25. Bxf4 {[%emt 0:01:45]} Qxf4 26. g3 Rd2 {[%emt 0:02:16]} 27. gxf4 {[%emt 0:11:10]} Rxe2 {[%emt 0:00:12]} 28. Be4 {[%emt 0:04:26]} Bxe4 {[%emt 0:00:20]} 29. fxe4 {[%emt 0:00:01]} Rxe4 {[%emt 0:00:31]} 30. Rac1 {[%emt 0:01:14]} Rf6 {[%emt 0:00:35]} 31. Rc3 {[%emt 0:02:04]} Rfxf4 {[%emt 0:01:32]} 32. Rxf4 {[%emt 0:00:50]} Rxf4 {[%emt 0:00:03] normal} 0-1

[Event "GER-ch Youth U18w 2019"]
[Site "Willingen"]
[Date "2019.06.10"]
[Round "3.12"]
[White "Peters, Jenna Maria Lara"]
[Black "Schiewe, Nadin"]
[Result "0-1"]
[ECO "B09"]
[WhiteElo "1594"]
[BlackElo "1608"]
[Annotator "NA"]
[PlyCount "37"]
[EventDate "2019.06.07"]
[EventType "swiss"]
[EventRounds "9"]
[EventCountry "GER"]
[SourceTitle "playchess.com"]
[Source "ChessBase"]
[SourceQuality "1"]
[TimeControl "40/5400+30:1800+30"]

1. e4 {[%emt 0:02:07]} d6 {[%emt 0:00:00]} 2. d4 {[%emt 0:01:04]} Nf6 {[%emt 0:00:00]} 3. Nc3 {[%emt 0:01:05]} g6 {[%emt 0:02:11]} 4. f4 {[%emt 0:02:27]} Bg7 {[%emt 0:01:58]} 5. Bc4 {[%emt 0:03:57]} c6 {[%emt 0:04:17]} 6. Bb3 {[%emt 0:01:47]} O-O {[%emt 0:04:51]} 7. Nf3 {[%emt 0:09:15]} e6 {[%emt 0:09:21]} 8. Qe2 {[%emt 0:03:04]} Nbd7 {[%emt 0:04:34]} 9. O-O {[%emt 0:05:04]} a6 {[%emt 0:02:39]} 10. h3 {[%emt 0:02:44]} b5 {[%emt 0:05:33]} 11. g4 {[%emt 0:09:44]} c5 {[%emt 0:02:35]} 12. e5 {[%emt 0:00:57]} dxe5 {[%emt 0:01:09]} 13. dxe5 {[%emt 0:02:10]} Ne8 14. a4 {[%emt 0:00:10]} c4 {[%emt 0:14:30]} 15. Ba2 {[%emt 0:04:41]} Nc7 {[%emt 0:02:52]} 16. b3 {[%emt 0:00:30]} b4 {[%emt 0:03:53]} 17. Ne4 {[%emt 0:01:12]} c3 {[%emt 0:00:45]} 18. Qc4 {[%emt 0:02:29]} a5 {[%emt 0:01:27]} 19. Rd1 {[%emt 0:05:10] normal} 0-1